bitfinex-derivatives/quotes_BTCF0:USTF0_20250716
["timestamp","ask_amount","ask_price","bid_price","bid_amount"]
[1752679984285,0.40112129,119150.0,119140.0,0.1914112]
[1752679984585,0.40112129,119150.0,119140.0,0.1678112]
[1752679984783,0.2195712,119140.0,119130.0,0.8354941]
[1752679985377,0.4010117,119140.0,119130.0,0.8354941]
[1752679985577,0.4010117,119140.0,119130.0,0.1678141]
[1752679985778,0.125853,119150.0,119140.0,0.1678112]
[1752679985779,0.0646394,119150.0,119140.0,0.1678112]
[1752679986083,0.40112129,119150.0,119140.0,0.1914112]
[1752679986485,0.1678112,119140.0,119130.0,0.8879777]
[1752679986687,0.2195712,119140.0,119130.0,0.8814253]
[1752679987285,0.5,119150.0,119140.0,0.2162112]
[1752679987482,0.5,119150.0,119140.0,0.64986169]
[1752679987689,0.49544,119150.0,119140.0,1.83388568]
[1752679988284,0.49544,119150.0,119140.0,1.58388568]
[1752679988586,0.2987483,119170.0,119150.0,0.0236]
[1752679988587,0.3034399,119160.0,119150.0,0.0236]
[1752679988791,0.3034399,119160.0,119140.0,0.02124]
[1752679988792,0.2195572,119150.0,119140.0,0.001]
[1752679988986,0.2195572,119150.0,119140.0,0.1688112]
[1752679989185,0.2195572,119150.0,119140.0,0.66688]
[1752679989489,0.2195572,119150.0,119140.0,0.8346912]
[1752679989888,0.2195514,119160.0,119150.0,0.1913972]
[1752679990094,4e-05,119180.0,119160.0,0.2535591]
[1752679990095,0.1776214,119180.0,119160.0,0.2535591]
[1752679990293,0.219529,119170.0,119160.0,0.2955044]
[1752679990590,0.2195431,119160.0,119150.0,0.1677972]
[1752679990791,0.1677972,119150.0,119140.0,0.2527013]
[1752679991091,0.40112129,119150.0,119140.0,0.66688]
[1752679991492,0.40112129,119150.0,119140.0,0.8346912]
[1752679991689,0.40112129,119150.0,119140.0,0.66688]
[1752679991893,0.40112129,119150.0,119140.0,0.8346912]
[1752679992193,0.40112129,119150.0,119140.0,0.001]
[1752679992581,0.40112129,119150.0,119140.0,0.1688112]
[1752679992787,0.40112129,119150.0,119140.0,0.001]
[1752679992996,0.1678112,119140.0,119130.0,2.0351679]
[1752679993194,0.2195712,119140.0,119130.0,2.0587679]
[1752679993695,0.2195712,119140.0,119130.0,1.15952]
[1752679993888,0.2149153,119130.0,119120.0,0.67249613]
[1752679994094,0.2149153,119130.0,119120.0,0.00641613]
[1752679994095,0.2195853,119130.0,119120.0,0.00641613]
[1752679994294,0.1678394,119120.0,119110.0,0.91638927]
[1752679994495,0.2195994,119120.0,119110.0,0.91618927]
[1752679994693,0.05176,119120.0,119110.0,0.93642927]
[1752679994892,0.02269,119140.0,119130.0,0.1678253]
[1752679995094,0.44309169,119140.0,119130.0,0.8775453]
[1752679995286,0.02907,119140.0,119130.0,0.64531579]
[1752679995484,0.1677972,119150.0,119140.0,0.317251]
[1752679995691,0.2195712,119140.0,119130.0,0.8574953]
[1752679995990,0.2195712,119140.0,119130.0,0.1914253]
[1752679996293,0.2195853,119130.0,119120.0,0.19788207]
[1752679996490,0.1905294,119120.0,119110.0,0.02009817]
[1752679996797,0.40116349,119120.0,119110.0,0.01989817]
[1752679997288,0.40116349,119120.0,119110.0,0.01689817]
[1752679997889,0.90116349,119120.0,119110.0,0.01689817]
[1752679998089,0.7195994,119120.0,119110.0,0.01689817]
[1752679998385,1.33481398,119120.0,119110.0,0.01689817]
[1752679998588,1.33481398,119120.0,119100.0,0.0002]
[1752679998589,0.1678535,119110.0,119100.0,0.0002]
[1752679998896,0.2096276,119100.0,119090.0,0.8759313]
[1752679999097,0.2096276,119100.0,119090.0,0.833761]
[1752679999299,0.2096276,119100.0,119090.0,0.167881]
[1752679999498,0.2744815,119110.0,119100.0,0.1678676]
[1752679999689,0.02269,119110.0,119100.0,0.65255809]
[1752679999893,0.0839158,119130.0,119120.0,0.1678394]
[1752679999894,0.1905153,119130.0,119120.0,0.1678394]
[1752680000091,0.37207939,119130.0,119120.0,0.66588]
[1752680000286,0.1678394,119120.0,119110.0,0.0002]
[1752680000491,0.49798069,119120.0,119110.0,0.8336935]
[1752680000692,0.49798069,119120.0,119110.0,0.1678535]
[1752680000894,0.52729069,119120.0,119110.0,0.1678535]
[1752680001489,0.2212034,119110.0,119100.0,0.9179074]
[1752680001694,0.40276749,119110.0,119100.0,0.9177074]
[1752680002397,0.23491409,119110.0,119100.0,0.9422674]
[1752680002593,0.02504,119120.0,119100.0,0.7963975]
[1752680002796,0.02504,119120.0,119110.0,0.75476399]
[1752680002797,0.001,119120.0,119110.0,0.75476399]
[1752680002991,0.001,119120.0,119110.0,0.65476399]
[1752680003189,0.1688394,119120.0,119110.0,0.8869935]
[1752680003492,0.1932594,119120.0,119110.0,0.05326]
[1752680003693,0.40575349,119120.0,119110.0,0.8337735]
[1752680003899,0.40086349,119120.0,119110.0,1.32068399]
[1752680004096,0.05146,119120.0,119110.0,1.32068399]
[1752680004302,0.00304,119120.0,119110.0,1.48858799]
[1752680004504,4e-05,119120.0,119110.0,1.58858799]
[1752680004799,4e-05,119120.0,119110.0,1.1549375]
[1752680005101,4e-05,119120.0,119110.0,1.69569313]
[1752680005398,0.2211483,119150.0,119140.0,0.2164912]
[1752680005596,0.40271239,119150.0,119140.0,1.42770683]
[1752680005794,0.40271239,119150.0,119140.0,1.42312683]
[1752680005989,0.40271239,119150.0,119140.0,0.88859914]
[1752680006196,0.1678112,119140.0,119130.0,0.9178015]
[1752680006399,0.2211753,119130.0,119120.0,0.88333523]
[1752680006698,0.02442,119130.0,119120.0,1.54901523]
[1752680006897,0.04846,119140.0,119130.0,0.2165053]
[1752680007098,0.2097581,119150.0,119140.0,0.1678112]
[1752680007400,0.23491409,119150.0,119140.0,1.40513841]
[1752680007607,0.23402409,119150.0,119140.0,1.43383841]
[1752680008102,0.40182119,119150.0,119140.0,1.43383841]
[1752680008698,0.004,119150.0,119140.0,1.43383841]
[1752680008892,0.004,119150.0,119140.0,1.61891451]
[1752680009299,0.1717971,119150.0,119140.0,0.78521052]
[1752680009503,0.96596283,119150.0,119140.0,0.68918369]
[1752680009697,0.94746682,119150.0,119140.0,0.68918369]
[1752680009993,0.40671119,119150.0,119140.0,0.23987489]
[1752680010194,0.42520869,119150.0,119140.0,0.02338369]
[1752680010404,0.96596432,119150.0,119140.0,0.01721211]
[1752680010901,0.2211612,119140.0,119130.0,0.0002]
[1752680011106,0.2211753,119130.0,119120.0,0.0002]
[1752680011405,0.2211753,119130.0,119110.0,0.01714847]
[1752680011406,0.2209894,119120.0,119110.0,0.01714847]
[1752680011703,0.40255349,119120.0,119110.0,0.18500197]
[1752680011908,0.02404,119120.0,119110.0,0.7744376]
[1752680012102,0.2211885,119130.0,119120.0,0.04868]
[1752680012296,0.2211894,119120.0,119110.0,0.21556224]
[1752680012607,0.42126358,119120.0,119110.0,0.18500197]
[1752680012808,0.42126358,119120.0,119110.0,0.01714847]
[1752680013008,0.96201921,119120.0,119110.0,0.01714847]
[1752680013708,1.46201921,119120.0,119110.0,0.18500197]
[1752680013896,0.54744009,119120.0,119110.0,0.78085495]
[1752680014097,0.00489,119100.0,119080.0,0.06554629]
[1752680014404,0.40279579,119090.0,119080.0,0.01686629]
[1752680014998,0.94355142,119090.0,119080.0,0.02308978]
[1752680015196,0.40279579,119090.0,119080.0,0.19598558]
[1752680015401,0.40279579,119090.0,119080.0,0.22010558]
[1752680015804,0.40279579,119090.0,119080.0,0.21610558]
[1752680016402,0.1919217,119090.0,119080.0,0.24524558]
[1752680016607,0.2212317,119090.0,119080.0,0.24066558]
[1752680016798,0.00489,119090.0,119080.0,0.24524558]
[1752680016999,0.1678817,119090.0,119080.0,0.32919068]
[1752680017199,0.2098463,119100.0,119090.0,0.2211417]
[1752680017603,0.2811032,119110.0,119100.0,0.1678676]
[1752680017799,0.32362941,119110.0,119100.0,0.1919876]
[1752680018000,0.86438504,119110.0,119100.0,0.1919876]
[1752680018201,1.00398373,119110.0,119100.0,0.02412]
[1752680018399,0.1678676,119100.0,119090.0,0.04868]
[1752680018612,0.2212317,119090.0,119080.0,0.04720978]
[1752680018905,0.76198733,119090.0,119080.0,0.01686629]
[1752680019108,0.2212458,119080.0,119070.0,0.1000846]
[1752680019312,0.94356552,119080.0,119070.0,0.1000846]
[1752680019510,0.76200143,119080.0,119070.0,0.1000846]
[1752680019705,0.96205227,119080.0,119070.0,8.46e-05]
[1752680020009,0.96205227,119080.0,119060.0,0.01686964]
[1752680020010,0.1679099,119070.0,119060.0,0.01686964]
[1752680020202,0.94357962,119070.0,119060.0,0.01686964]
[1752680020507,1.62765719,119070.0,119060.0,0.01686964]
[1752680021410,1.62761719,119070.0,119060.0,0.01686964]
[1752680022214,1.62765719,119070.0,119060.0,0.01686964]
[1752680022512,0.1923863,119030.0,119020.0,0.01703423]
[1752680022813,1.60923602,119030.0,119020.0,0.00703423]
[1752680023198,1.60923602,119030.0,119020.0,0.17501463]
[1752680023414,0.2113163,119030.0,119020.0,0.22369463]
[1752680023705,0.2113163,119030.0,119020.0,0.21699263]
[1752680023706,0.70872193,119030.0,119020.0,0.21699263]
[1752680023912,0.76207193,119030.0,119020.0,0.03115423]
[1752680024211,0.40288039,119030.0,119020.0,0.00703423]
[1752680024416,0.40288039,119030.0,119020.0,0.01303423]
[1752680024707,0.40292039,119030.0,119020.0,0.01303423]
[1752680024912,0.40292039,119030.0,119020.0,0.01003423]
[1752680025115,0.2213563,119030.0,119020.0,0.22669463]
[1752680025310,0.40292039,119030.0,119020.0,0.03415423]
[1752680025615,0.94367602,119030.0,119020.0,0.01003423]
[1752680025809,1.44367602,119030.0,119020.0,0.01003423]
[1752680026311,0.90292039,119030.0,119020.0,0.01003423]
[1752680026506,1.44367602,119030.0,119020.0,0.01003423]
[1752680026906,0.90292039,119030.0,119020.0,0.01003423]
[1752680027101,0.90292039,119030.0,119020.0,0.03415423]
[1752680027514,0.90292039,119030.0,119020.0,0.20213463]
[1752680027812,0.6969363,119030.0,119020.0,0.23127463]
[1752680028015,0.6969363,119030.0,119020.0,0.73127463]
[1752680028213,0.7213563,119030.0,119020.0,0.73127463]
[1752680028404,0.05339,119030.0,119020.0,0.73127463]
[1752680028607,4e-05,119030.0,119020.0,1.27203026]
[1752680028814,8e-05,119030.0,119020.0,1.27203026]
[1752680029109,8e-05,119030.0,119020.0,1.93763026]
[1752680029611,0.1680463,119030.0,119020.0,1.93759026]
[1752680029810,0.2213963,119030.0,119020.0,1.39225463]
[1752680030114,0.2213963,119030.0,119020.0,0.72669463]
[1752680031014,0.2213963,119030.0,119020.0,1.26745026]
[1752680031216,0.1680463,119030.0,119020.0,1.27212026]
[1752680031718,0.1680463,119030.0,119020.0,0.73136463]
[1752680032102,8e-05,119030.0,119020.0,1.27212026]
[1752680032706,0.02313,119030.0,119020.0,1.39688463]
[1752680032912,0.02313,119030.0,119020.0,0.73136463]
[1752680033119,0.02313,119030.0,119020.0,1.93760026]
[1752680034024,8e-05,119030.0,119020.0,1.93760026]
[1752680034212,8e-05,119030.0,119020.0,2.10563226]
[1752680034414,0.05131,119060.0,119050.0,0.1919981]
[1752680034610,4e-05,119070.0,119060.0,0.2213039]
[1752680034815,4e-05,119070.0,119060.0,1.44461931]
[1752680036419,4e-05,119070.0,119060.0,1.44457931]
[1752680036612,4e-05,119070.0,119060.0,0.23842368]
[1752680036825,0.05135,119070.0,119060.0,0.89903368]
[1752680037014,4e-05,119070.0,119060.0,1.44445931]
[1752680039325,0.2192599,119070.0,119060.0,0.89895368]
[1752680039622,0.05135,119070.0,119060.0,0.90195368]
[1752680039819,0.2192599,119070.0,119060.0,1.44270931]
[1752680040120,0.2192599,119070.0,119060.0,1.44170931]
[1752680040928,0.02807,119070.0,119060.0,1.44170931]
[1752680041115,0.02309,119070.0,119060.0,1.44637931]
[1752680041317,0.1909998,119070.0,119060.0,1.44637931]
[1752680041621,0.2192598,119070.0,119060.0,1.44637941]
[1752680041810,0.2192598,119070.0,119060.0,1.44170941]
[1752680042017,0.05135,119070.0,119060.0,1.44170941]
[1752680042211,4e-05,119070.0,119060.0,1.44637941]
[1752680042417,4e-05,119080.0,119070.0,0.2212899]
[1752680042616,4e-05,119080.0,119070.0,0.76204553]
[1752680043325,0.02305,119110.0,119070.0,1.05871563]
[1752680043528,0.37246759,119110.0,119100.0,0.76196323]
[1752680043714,0.37246759,119110.0,119100.0,0.8813776]
[1752680043715,0.40072759,119110.0,119100.0,0.8813776]
[1752680043920,0.37246759,119110.0,119100.0,1.42676323]
[1752680044118,0.23287409,119110.0,119100.0,1.42676323]
[1752680044319,0.20959409,119110.0,119100.0,1.42676323]
[1752680044521,0.2611554,119120.0,119110.0,0.1919135]
[1752680044724,0.27960673,119120.0,119110.0,0.1919135]
[1752680044925,0.46117082,119120.0,119110.0,0.02406]
[1752680045225,0.44271949,119120.0,119110.0,0.1919135]
[1752680045422,0.05135,119120.0,119110.0,0.1919135]
[1752680045630,4e-05,119120.0,119110.0,0.7683276]
[1752680045818,4e-05,119120.0,119110.0,0.8683276]
[1752680046223,4e-05,119120.0,119110.0,0.7683276]
[1752680046824,0.00404,119120.0,119110.0,0.8683276]
[1752680047030,0.00404,119120.0,119110.0,1.5328476]
[1752680047226,0.02803,119140.0,119110.0,1.5328981]
[1752680047520,0.2191071,119150.0,119140.0,0.2211512]
[1752680047725,0.40067119,119150.0,119140.0,1.42617183]
[1752680047920,0.23287409,119150.0,119140.0,1.42617183]
[1752680048126,0.18156409,119150.0,119140.0,1.42617183]
[1752680048424,0.1677971,119150.0,119140.0,1.48621553]
[1752680048625,0.3449891,119160.0,119150.0,0.1677971]
[1752680048824,0.3449891,119160.0,119140.0,1.36036793]
[1752680048825,0.1908471,119150.0,119140.0,1.52836923]
[1752680049132,0.1958271,119150.0,119140.0,1.52816923]
[1752680049324,0.02803,119150.0,119140.0,1.52816923]
[1752680049526,4e-05,119160.0,119150.0,0.1970771]
[1752680049831,4e-05,119160.0,119150.0,0.76189273]
[1752680050025,0.05135,119160.0,119150.0,0.75726273]
[1752680050324,0.219133,119160.0,119150.0,0.1677971]
[1752680050527,0.1677971,119150.0,119140.0,1.97715523]
[1752680050726,0.40067119,119150.0,119140.0,1.8246]
[1752680050928,0.2191212,119140.0,119130.0,0.66436]
[1752680051231,0.40068529,119140.0,119130.0,0.65416]
[1752680051728,0.40068529,119140.0,119120.0,0.20939591]
[1752680051729,0.1678253,119130.0,119120.0,0.01750401]
[1752680052035,0.94145502,119130.0,119120.0,0.01730401]
[1752680052232,0.2191494,119120.0,119110.0,0.0002]
[1752680052437,0.2191635,119110.0,119100.0,0.01752085]
[1752680052733,0.39072759,119110.0,119100.0,0.84910845]
[1752680053038,0.40072759,119110.0,119100.0,0.87316845]
[1752680053333,0.90072759,119110.0,119100.0,0.87316845]
[1752680053523,0.90072759,119110.0,119100.0,0.87961129]
[1752680053924,0.90072759,119110.0,119100.0,0.88161129]
[1752680054536,0.5,119110.0,119100.0,0.91089129]
[1752680054832,0.2517756,119120.0,119110.0,0.3004849]
[1752680054833,0.02305,119120.0,119110.0,0.3004849]
[1752680055030,0.1908753,119130.0,119120.0,0.2211794]
[1752680055333,0.39571939,119130.0,119120.0,0.8803094]
[1752680055529,0.2191494,119120.0,119110.0,0.02426]
[1752680055736,0.2191635,119110.0,119100.0,0.21788709]
[1752680055932,0.40072759,119110.0,119100.0,0.02576369]
[1752680056232,0.40072759,119110.0,119100.0,0.01732085]
[1752680056929,0.7191635,119110.0,119100.0,0.87492845]
[1752680057129,0.90072759,119110.0,119100.0,1.33339875]
[1752680057434,0.5,119110.0,119100.0,1.34187521]
[1752680058227,0.2610926,119130.0,119120.0,0.1678394]
[1752680058428,0.2610926,119130.0,119120.0,0.8554594]
[1752680058735,0.40069969,119130.0,119120.0,0.8801094]
[1752680059137,4e-05,119160.0,119120.0,1.1020103]
[1752680059431,0.2986564,119160.0,119150.0,0.4825303]
[1752680059737,0.1727771,119150.0,119140.0,0.02426]
[1752680059932,0.35434119,119150.0,119140.0,0.02406]
[1752680060130,0.1727912,119140.0,119130.0,0.20940235]
[1752680060433,0.35435529,119140.0,119130.0,0.89725235]
[1752680061035,0.18654409,119140.0,119130.0,0.89725235]
[1752680061329,0.35435529,119140.0,119130.0,0.89725235]
[1752680061833,0.0047,119150.0,119140.0,0.2164512]
[1752680062035,0.18160409,119150.0,119140.0,0.6549015]
[1752680062432,4e-05,119150.0,119140.0,0.6549015]
[1752680062936,4e-05,119150.0,119140.0,1.3180615]
[1752680063434,4e-05,119150.0,119140.0,0.6549015]
[1752680063734,4e-05,119150.0,119140.0,1.3179415]
[1752680063936,4e-05,119150.0,119140.0,1.3179015]
[1752680064930,4e-05,119150.0,119140.0,1.48576549]
[1752680065636,0.00104,119150.0,119140.0,1.3179015]
[1752680065836,4e-05,119160.0,119150.0,0.1677971]
[1752680066043,4e-05,119160.0,119150.0,0.77220487]
[1752680066238,4e-05,119160.0,119150.0,0.67220487]
[1752680066535,4e-05,119160.0,119150.0,0.77220487]
[1752680068235,0.0002,119180.0,119170.0,0.6548593]
[1752680068440,0.0002,119180.0,119170.0,1.3174193]
[1752680068738,0.1679549,119180.0,119170.0,1.3174193]
[1752680069032,0.1679549,119180.0,119170.0,0.221039]
[1752680069234,0.40163899,119180.0,119170.0,0.02469]
[1752680069439,0.42009674,119180.0,119170.0,0.854939]
[1752680069638,0.25434184,119180.0,119170.0,0.878889]
[1752680069936,0.0022,119180.0,119170.0,1.3173393]
[1752680070333,0.1699549,119180.0,119170.0,0.6548593]
[1752680070528,0.38010899,119180.0,119170.0,0.878729]
[1752680070734,0.40363899,119180.0,119170.0,0.878689]
[1752680071135,0.42209241,119180.0,119170.0,0.02469]
[1752680071329,0.05212,119170.0,119150.0,0.01731747]
[1752680071636,0.40149529,119140.0,119130.0,0.00731705]
[1752680072031,0.02353,119110.0,119100.0,0.29757794]
[1752680072231,0.37690307,119110.0,119100.0,1.04176164]
[1752680072433,0.35337307,119110.0,119100.0,1.04176164]
[1752680072838,0.35337307,119110.0,119100.0,0.89979764]
[1752680073041,0.35337307,119110.0,119100.0,0.04201085]
[1752680073042,0.37690307,119110.0,119100.0,0.04201085]
[1752680073743,0.37690307,119110.0,119100.0,0.67932085]
[1752680074039,0.37690307,119110.0,119100.0,0.84718845]
[1752680074238,0.35337307,119110.0,119100.0,0.89582845]
[1752680074432,0.37690307,119110.0,119100.0,0.67932085]
[1752680074834,0.37690307,119110.0,119100.0,0.87183845]
[1752680075041,0.35337307,119110.0,119100.0,0.89578845]
[1752680075339,0.37690307,119110.0,119100.0,0.02132085]
[1752680075944,0.86690307,119110.0,119100.0,0.18918845]
[1752680076139,0.81478307,119110.0,119100.0,0.24251845]
[1752680076542,0.7099735,119110.0,119100.0,0.23782845]
[1752680076746,0.86690307,119110.0,119100.0,0.89962845]
[1752680077449,0.84337307,119110.0,119100.0,0.89962845]
[1752680077748,0.2803672,119120.0,119110.0,0.2164935]
[1752680077947,0.39533397,119120.0,119110.0,0.2164935]
[1752680078244,0.233323,119130.0,119110.0,0.5710718]
[1752680078440,0.32476897,119120.0,119110.0,0.3050918]
[1752680078747,0.2199735,119110.0,119100.0,0.89754845]
[1752680078940,0.37690307,119110.0,119100.0,0.89754845]
[1752680079247,0.37690307,119110.0,119100.0,0.89554845]
[1752680079435,0.37690307,119110.0,119100.0,0.70373085]
[1752680079740,0.35337307,119110.0,119100.0,0.23382845]
[1752680079945,0.35337307,119110.0,119100.0,0.89542845]
[1752680080337,0.275303,119120.0,119110.0,0.1678535]
[1752680080545,0.15692957,119120.0,119110.0,0.6550038]
[1752680080746,0.2383854,119130.0,119120.0,0.2164794]
[1752680080941,0.2383854,119130.0,119120.0,0.8779994]
[1752680081146,0.1074397,119140.0,119130.0,0.2164653]
[1752680081147,0.1964121,119140.0,119130.0,0.2164653]
[1752680081347,0.1964012,119140.0,119130.0,0.2164653]
[1752680081545,0.35333077,119140.0,119130.0,0.6502856]
[1752680081751,0.35333077,119140.0,119130.0,0.04864]
[1752680081943,0.37686077,119140.0,119130.0,0.04864]
[1752680082148,0.1964153,119130.0,119120.0,0.66152]
[1752680082348,0.37687487,119130.0,119120.0,0.8779994]
[1752680082748,0.35334487,119130.0,119120.0,0.2164794]
[1752680083254,0.35334487,119130.0,119120.0,0.8778394]
[1752680083957,0.20904957,119130.0,119120.0,0.2164794]
[1752680084161,0.35334487,119130.0,119120.0,0.8777594]
[1752680084358,0.20904957,119130.0,119120.0,0.8777594]
[1752680084662,0.18551957,119130.0,119120.0,0.8777594]
[1752680085066,0.35334487,119130.0,119120.0,0.8777594]
[1752680085263,0.18551957,119130.0,119120.0,0.8777594]
[1752680085566,0.18551957,119130.0,119120.0,0.8807594]
[1752680085762,0.16158957,119130.0,119120.0,0.8807594]
[1752680086060,0.32941487,119130.0,119120.0,0.8844494]
[1752680086255,0.32941487,119130.0,119120.0,0.8797594]
[1752680086256,0.35334487,119130.0,119120.0,0.8797594]
[1752680086456,0.37687487,119130.0,119120.0,0.2184794]
[1752680086657,0.37687487,119130.0,119120.0,0.8795194]
[1752680087251,0.18551957,119130.0,119120.0,0.8795194]
[1752680087859,0.35334487,119130.0,119120.0,0.8795194]
[1752680088054,0.37687487,119130.0,119120.0,0.8795194]
[1752680088762,0.37687487,119130.0,119120.0,0.8308794]
[1752680088956,0.37687487,119130.0,119120.0,0.8555694]
[1752680089155,0.15692957,119130.0,119120.0,1.42515632]
[1752680090065,0.00466,119140.0,119130.0,0.2211553]
[1752680090361,0.23854251,119150.0,119140.0,0.2164512]
[1752680090561,0.37686077,119140.0,119130.0,0.0002]
[1752680090759,0.91780769,119140.0,119130.0,0.1678253]
[1752680090961,0.37686077,119140.0,119130.0,0.2154353]
[1752680091161,0.32940077,119140.0,119130.0,0.76121222]
[1752680091363,0.35190077,119140.0,119130.0,0.76121222]
[1752680091566,0.35190077,119140.0,119130.0,0.75638222]
[1752680092268,0.35190077,119140.0,119130.0,0.2154353]
[1752680092667,0.27931041,119150.0,119140.0,0.2154212]
[1752680092862,0.27931041,119150.0,119140.0,0.70805]
[1752680093056,0.43623998,119150.0,119140.0,0.8758612]
[1752680093462,0.43623998,119150.0,119140.0,0.66044]
[1752680093463,0.99583556,119150.0,119140.0,0.66044]
[1752680093963,0.2187512,119140.0,119130.0,0.934954]
[1752680094268,0.37568077,119140.0,119130.0,0.959734]
[1752680095164,0.37568077,119140.0,119120.0,0.0421597]
[1752680095165,0.2187653,119130.0,119120.0,0.66044]
[1752680095364,0.91664179,119130.0,119120.0,0.66024]
[1752680095767,0.2187794,119120.0,119110.0,0.0002]
[1752680095968,0.2187935,119110.0,119100.0,0.04015085]
[1752680096267,0.72631649,119110.0,119090.0,0.0002]
[1752680096469,0.2188358,119080.0,119070.0,0.0599192]
[1752680096662,0.2188499,119070.0,119060.0,0.24496298]
[1752680096863,0.98321799,119070.0,119060.0,0.06703898]
[1752680097059,0.43227107,119070.0,119060.0,0.06703898]
[1752680097563,0.43227107,119070.0,119060.0,0.23496298]
[1752680097961,0.43227107,119070.0,119060.0,0.71684407]
[1752680097962,6.969e-05,119070.0,119060.0,0.71684407]
[1752680098161,6.969e-05,119070.0,119060.0,1.32166487]
[1752680098369,0.17264009,119070.0,119060.0,0.29755279]
[1752680098565,0.37584966,119070.0,119060.0,0.88249378]
[1752680098964,0.37588966,119070.0,119060.0,0.88249378]
[1752680099269,0.37588966,119070.0,119060.0,0.88649378]
[1752680099858,0.37588966,119070.0,119060.0,0.01111978]
[1752680100064,0.37588966,119070.0,119060.0,0.17904418]
[1752680100264,0.37588966,119070.0,119060.0,0.01111978]
[1752680100265,0.81009106,119070.0,119060.0,0.01111978]
[1752680100768,0.37581997,119070.0,119060.0,0.01111978]
[1752680100970,2.13778706,119070.0,119030.0,0.06013478]
[1752680101169,0.81009686,119040.0,119030.0,0.02263]
[1752680101371,0.2189103,119030.0,119020.0,0.52966423]
[1752680101562,0.80011096,119030.0,119020.0,0.49703423]
[1752680101965,0.1679986,119010.0,119000.0,0.005]
[1752680102166,0.81013926,119010.0,119000.0,0.005]
[1752680102378,0.3029099,119030.0,119020.0,0.04761]
[1752680102569,0.2609147,119030.0,119020.0,0.2204544]
[1752680102868,7.142e-05,119030.0,119020.0,0.2204544]
[1752680103075,0.82496779,119030.0,119020.0,0.2204544]
[1752680103264,0.84746779,119030.0,119020.0,0.2204544]
[1752680103465,0.87590779,119030.0,119020.0,0.04761]
[1752680103668,0.50307142,119030.0,119020.0,0.65472199]
[1752680103871,0.67103822,119030.0,119020.0,0.2204509]
[1752680104074,0.67103822,119030.0,119020.0,0.02263]
[1752680104075,0.87890779,119030.0,119020.0,0.02263]
[1752680104275,0.2189209,119020.0,119010.0,0.70717]
[1752680104575,0.37593207,119020.0,119010.0,0.70717]
[1752680104768,0.37593207,119020.0,119010.0,0.875045]
[1752680105071,8.16e-05,119020.0,119010.0,0.65473609]
[1752680105268,8.16e-05,119020.0,119010.0,1.31417609]
[1752680105577,0.1680625,119020.0,119010.0,1.31417609]
[1752680105767,0.1680625,119020.0,119010.0,0.05247]
[1752680105966,0.1680625,119020.0,119010.0,0.879909]
[1752680105967,0.35215207,119020.0,119010.0,0.879909]
[1752680106767,0.65327359,119020.0,119000.0,0.005]
[1752680106969,0.81022126,119010.0,119000.0,0.005]
[1752680107170,0.81013966,119010.0,119000.0,0.005]
[1752680107579,1.88748366,119010.0,119000.0,0.005]
[1752680107878,0.65322419,119000.0,118990.0,0.01701013]
[1752680108081,0.81015376,119000.0,118990.0,0.01701013]
[1752680109380,0.37588267,119000.0,118990.0,0.01701013]
[1752680109883,1.31015376,119000.0,118990.0,0.18503733]
[1752680110284,0.87588267,119000.0,118990.0,0.20766733]
[1752680110486,0.67942957,119000.0,118990.0,0.67177842]
[1752680110684,0.50007863,119000.0,118990.0,1.33081842]
[1752680110982,0.50011863,119000.0,118990.0,1.33081842]
[1752680111192,0.00011863,119000.0,118990.0,1.33081842]
[1752680111388,0.00011863,119000.0,118990.0,1.43081842]
[1752680111586,4e-05,119010.0,119000.0,0.2156231]
[1752680111790,4e-05,119010.0,119000.0,0.65475419]
[1752680112286,0.0644903,119040.0,119020.0,0.0419932]
[1752680112493,0.32490027,119030.0,119020.0,0.8318784]
[1752680112690,0.15692957,119030.0,119020.0,0.9158689]
[1752680112990,0.32490027,119030.0,119020.0,0.879495]
[1752680113187,0.218925,119020.0,119010.0,0.0002]
[1752680113395,0.2142791,119010.0,119000.0,0.02283]
[1752680113586,0.2142932,119000.0,118990.0,0.02021013]
[1752680113787,0.81015386,119000.0,118990.0,0.01701013]
[1752680113993,0.81015386,119000.0,118990.0,0.02001013]
[1752680114191,1.46899386,119000.0,118990.0,3e-08]
[1752680114393,0.36125107,118980.0,118970.0,0.03881793]
[1752680114988,0.36125107,118980.0,118970.0,0.03499658]
[1752680115190,0.36125107,118980.0,118970.0,0.05997658]
[1752680116197,0.80018216,118980.0,118970.0,0.00750658]
[1752680116701,1.62688616,118980.0,118970.0,8e-08]
[1752680116898,2.12688616,118980.0,118970.0,8e-08]
[1752680117086,2.12688616,118980.0,118940.0,0.0228103]
[1752680117087,0.1905838,118950.0,118940.0,0.0526503]
[1752680117291,0.80556446,118950.0,118940.0,0.0526503]
[1752680117698,0.81022446,118950.0,118940.0,0.0001803]
[1752680117889,0.37595337,118950.0,118940.0,0.0001803]
[1752680118494,0.37595337,118950.0,118940.0,0.0228103]
[1752680118692,0.65329489,118950.0,118940.0,0.0001803]
[1752680118892,0.81022446,118950.0,118940.0,0.0001803]
[1752680119197,1.47836847,118950.0,118940.0,0.0011803]
[1752680119399,0.0420252,118940.0,118910.0,0.00486]
[1752680119590,0.2090801,118910.0,118900.0,0.02249]
[1752680119899,0.80028076,118910.0,118900.0,0.1681542]
[1752680120101,0.0225,118910.0,118900.0,0.1931342]
[1752680120402,0.1681401,118910.0,118900.0,0.1931342]
[1752680120694,0.2194042,118900.0,118890.0,0.01693827]
[1752680120904,0.81060486,118900.0,118890.0,0.01693827]
[1752680121199,0.81060486,118900.0,118890.0,0.01685259]
[1752680121397,0.2191025,118880.0,118870.0,0.01682159]
[1752680121697,0.37603207,118880.0,118870.0,0.01682159]
[1752680121902,0.81030316,118880.0,118870.0,0.01682159]
[1752680122495,0.81030316,118880.0,118830.0,0.1327745]
[1752680122496,0.0640878,118850.0,118830.0,0.1327745]
[1752680122699,0.195709,118840.0,118830.0,0.1928636]
[1752680122996,0.00452,118860.0,118850.0,0.1928446]
[1752680123198,0.00452,118860.0,118850.0,0.2217846]
[1752680123404,0.1681962,118870.0,118860.0,0.02403]
[1752680123704,0.34715577,118870.0,118860.0,0.1928304]
[1752680124299,0.1682096,118860.0,118850.0,0.02894]
[1752680124591,0.1727296,118860.0,118850.0,0.02462]
[1752680124793,0.34716917,118860.0,118850.0,0.02462]
[1752680124997,0.18439957,118860.0,118850.0,0.1928428]
[1752680125304,0.3218584,118870.0,118860.0,0.1928287]
[1752680125502,0.2798069,118870.0,118860.0,0.04865]
[1752680125699,0.0695235,118860.0,118850.0,0.02462]
[1752680126001,0.2132165,118840.0,118830.0,0.02462]
[1752680126193,0.04498,118840.0,118830.0,0.1928707]
[1752680126401,0.0420556,118850.0,118840.0,0.1682365]
[1752680126604,0.36722007,118850.0,118840.0,0.2168865]
[1752680126900,0.35263447,118850.0,118840.0,0.2168865]
[1752680127500,0.2797954,118860.0,118850.0,0.2168724]
[1752680127795,0.45423497,118860.0,118850.0,0.02462]